Cogmind - Beta 13 @@@ ROGUE MODE // 2024.04.28 @ 07:22:55 Player: Khoroshiy Result: Destroyed by G-67 Veteran with Plasma Rifle Performance ------------- Evolutions (5) 2500 Regions Visited (13) 2600 Robots Destroyed (41) 205 Value Destroyed (947) 947 Prototype IDs (9) 180 Alien Tech Used (0) 0 Bonus (1248) 1248 TOTAL SCORE: 7680 Bonus ------- High Alert Combat Kills 21 Follower Combat Kills 7 Met Warlord at Base 500 MAIN.C Attacked Warlord 500 Warlord Defense Kills 220 Cogmind --------- Core Integrity 0/1000 Matter 300/300 Energy 55/100 System Corruption 0% Temperature Cool (37) Movement Core (50) Location -4/Proximity Caves Parts ------- > --- POWER (2) -------- (None) > --- PROPULSION (6) --- (None) > --- UTILITY (6) ------ Enhanced Optical Array Improved Propulsion Shielding Hacking Suite > --- WEAPON (3) ------- (None) > --- INVENTORY (5) ---- Makeshift Hacking Suite Vortex Rifle (35) Vortex Rifle (35) Peak State ------------ > --- POWER ------------ Micro Nuclear Core Light Fission Core > --- PROPULSION ------- Cesium-ion Thruster Cesium-ion Thruster Improved Cesium-ion Thruster Cooled VTOL Module Nuclear Pulse Thruster Nuclear Pulse Thruster > --- UTILITY ---------- Advanced Heat Sink Small Storage Unit Advanced Weight Redist. System Enhanced Optical Array Improved Sensor Array Hacking Suite > --- WEAPON ----------- Vortex Rail Guided EMP Blaster > --- INVENTORY -------- Improved Propulsion Shielding Magnetic Acceleration Cannon Mass Driver Mass Driver Enhanced Gauss Cannon Advanced EMP Blaster [Rating: 79] Favorites ----------- Power Micro Nuclear Core Engine Light Ion Engine Power Core Micro Nuclear Core Reactor Graviton Reactor Propulsion Cesium-ion Thruster Treads Armored Medium Treads Leg Aluminum Leg Hover Unit Improved Hover Unit Flight Unit Cesium-ion Thruster Utility Small Storage Unit Device Advanced Weight Redist. System Storage Small Storage Unit Processor Enhanced Optical Array Hackware Hacking Suite Protection Improved Propulsion Shielding Weapon Guided EMP Blaster Energy Gun Medium Laser Energy Cannon Vortex Driver Ballistic Gun Assault Rifle Ballistic Cannon Enhanced Gauss Cannon Launcher Guided EMP Blaster Build | -11 -10 -9 -9 -8 -7 -6 -6 -6 -5 -5 -5 -5 -4 ------- Run | Yrd Mat Mat Min Mat Fac Fac Was Fac Fac Upp Upp War Pro Slots Evolved 10 | . . 2 . 2 2 2 . . 2 . . . . Power 1 | . . . . . . . . . 1 . . . . Propulsion 4 | . . 2 . . 2 . . . . . . . . Utility 4 | . . . . 2 . 1 . . 1 . . . . Weapon 1 | . . . . . . 1 . . . . . . . Parts Attached 79 | 6 . 11 . 7 12 10 4 9 2 4 1 9 4 Power 11 | 1 . 1 . 3 . 1 2 1 1 . . . 1 Engine 4 | 1 . 1 . 2 . . . . . . . . . Core 6 | . . . . 1 . 1 1 1 1 . . . 1 Reactor 1 | . . . . . . . 1 . . . . . . Propulsion 36 | 2 . 8 . 3 11 7 . 2 . 1 . 2 . Treads 2 | . . . . . . . . . . . . 2 . Leg 2 | 2 . . . . . . . . . . . . . Wheel . | . . . . . . . . . . . . . . Hover 16 | . . 4 . 3 4 5 . . . . . . . Flight 16 | . . 4 . . 7 2 . 2 . 1 . . . Utility 13 | 1 . . . . . 1 1 3 . 2 1 3 1 Device 6 | . . . . . . 1 . 2 . 1 1 1 . Storage 1 | 1 . . . . . . . . . . . . . Processor 1 | . . . . . . . . 1 . . . . . Hackware 2 | . . . . . . . . . . 1 . 1 . Protection 3 | . . . . . . . 1 . . . . 1 1 Artifact . | . . . . . . . . . . . . . . Weapon 19 | 2 . 2 . 1 1 1 1 3 1 1 . 4 2 Energy Gun 6 | 2 . . . . . . . . . . . 3 1 Energy Cannon 2 | . . . . . . . . . . . . 1 1 Ballistic Gun 1 | . . 1 . . . . . . . . . . . Ballistic Cannon 2 | . . . . . . . 1 . 1 . . . . Launcher 8 | . . 1 . 1 1 1 . 3 . 1 . . . Special Weapon . | . . . . . . . . . . . . . . Impact Weapon . | . . . . . . . . . . . . . . Slashing Weapon . | . . . . . . . . . . . . . . Piercing Weapon . | . . . . . . . . . . . . . . Special Melee Weapon . | . . . . . . . . . . . . . . Unidentified Prototypes 9 | . . . . 1 2 . 1 2 . . . 3 . Parts Lost 27 | . . 2 . 2 6 . . . . 1 . 6 10 Power 4 | . . 1 . . . . . . . . . . 3 Propulsion 12 | . . . . 1 4 . . . . 1 . 5 1 Utility 5 | . . . . . . . . . . . . 1 4 Weapon 6 | . . 1 . 1 2 . . . . . . . 2 Highest Loss Streak 10 | . . 2 . 2 5 . . . . 1 . 2 10 To Critical Strikes . | . . . . . . . . . . . . . . Average Slot Usage (%) 79 | . 85 78 88 71 70 59 76 90 88 89 88 78 49 Engine 2 | . 14 9 11 2 . . . . . . . . . Core 7 | . . . . 6 7 6 5 6 11 11 11 11 7 Leg 3 | . 28 9 . . . . . . . . . . . Hover 6 | . . 11 44 35 9 8 6 1 . . . . . Flight 22 | . . 16 . . 30 27 33 38 35 34 35 26 4 Device 7 | . . . . . . 1 6 12 11 11 17 12 11 Storage 7 | . 14 11 11 9 7 6 6 6 5 5 5 5 4 Processor 2 | . . . . . . . . 4 5 5 5 5 5 Hackware 3 | . . . . . . . . . . 4 5 9 11 Protection 1 | . . . . . . . 6 6 5 5 . . . Energy Gun 3 | . 28 12 . . . . . . . . . . . Ballistic Gun 2 | . . 5 11 9 7 . . . . . . . . Launcher 4 | . . 3 11 9 7 7 6 12 6 2 5 3 . Naked Turns . | . . . . . . . . . . . . . . Heaviest Build 39 | 11 11 16 16 17 17 23 28 28 36 36 30 39 21 Greatest Support 41 | 20 20 26 26 30 30 34 34 33 41 33 33 33 14 Greatest Overweight (x) 6 | 3 . 2 . . 3 1 . . 1 1 . 1 6 Average Overweight (x) . | . . . . . . . . . . . . . . Largest Inventory Capacity 8 | 8 8 8 8 8 8 8 8 8 8 8 8 8 8 Average Capacity 7 | 7 8 8 8 8 8 8 8 8 8 8 8 8 7 Most Carried 8 | 2 5 8 8 8 8 8 8 8 8 8 6 8 8 Average Carried 6 | 1 3 5 8 7 8 7 7 7 7 7 6 7 7 Final Capacity 8 | 8 8 8 8 8 8 8 8 8 8 8 8 8 5 Final Carried 8 | 2 5 8 8 8 8 8 8 8 8 6 6 8 3 Class Distribution -------------------- 46% | Mutant 31% | Sprinter 11% | Hacker-Sprinter 9% | Hacker-Mutant Dominant Class ---------------- Mutant | -10/Materials Mutant | -9/Materials Mutant | -9/Mines Mutant | -8/Materials Sprinter | -7/Factory Sprinter | -6/Factory Sprinter | -6/Waste Sprinter | -6/Factory Sprinter | -5/Factory Mutant | -5/Upper Caves Sprinter | -5/Upper Caves Hacker-Sprinter | -5/Warlord Hacker-Mutant | -4/Proximity Caves Resources | -11 -10 -9 -9 -8 -7 -6 -6 -6 -5 -5 -5 -5 -4 ----------- Run | Yrd Mat Mat Min Mat Fac Fac Was Fac Fac Upp Upp War Pro Matter Collected 1517 | 253 7 155 32 95 361 . 198 118 . 143 10 145 . Remotely . | . . . . . . . . . . . . . . Salvage Created 794 | . 62 208 5 84 178 . . 68 . 153 . 36 . Parts 68 | . 11 24 . 6 11 . . 10 . 6 . . . Haulers Intercepted 1 | . . . . . 1 . . . . . . . . Recyclers Shooed 1 | . 1 . . . . . . . . . . . . Parts Field Recycled . | . . . . . . . . . . . . . . Retrieved Matter . | . . . . . . . . . . . . . . Parts Self-Destructed 6 | . . . . . . . . . . 6 . . . Prevented 2 | . . . . . . . . . . 1 1 . . Kills | -11 -10 -9 -9 -8 -7 -6 -6 -6 -5 -5 -5 -5 -4 ------- Run | Yrd Mat Mat Min Mat Fac Fac Was Fac Fac Upp Upp War Pro Combat Hostiles Destroyed 33 | . 3 12 2 5 5 . . 3 . 2 . 1 . Guns 12 | . 3 8 . . . . . . . . . 1 . Cannons 1 | . . . . . . . . . . 1 . . . AOE 20 | . . 4 2 5 5 . . 3 . 1 . . . Classes Destroyed 10 | . 2 3 . 1 3 . . . . . . 1 . Worker 2 | . . . . . 1 . . 1 . . . . . Tunneler 2 | . . 2 . . . . . . . . . . . Hauler 1 | . . . . . 1 . . . . . . . . Recycler 1 | . . . . . 1 . . . . . . . . Watcher 2 | . 1 1 . . . . . . . . . . . Swarmer 24 | . 3 9 2 3 4 . . 3 . . . . . Grunt 4 | . . 2 . 1 1 . . . . . . . . Sentry 2 | . . 1 . . . . . . . 1 . . . Hunter 2 | . . . . 1 . . . . . 1 . . . Striker 1 | . . . . . . . . . . . . 1 . Best Kill Streak 8 | . 3 8 2 4 4 . . 4 . 1 . 1 . Combat Bots Only 5 | . 3 5 2 4 4 . . 3 . 1 . 1 . Max Kills in Single Turn 4 | . 1 3 2 3 2 . . 4 . 1 . 1 . Gunslinging 1 | . . 1 . . . . . . . . . . . Exploded 3 | . . 2 2 3 2 . . 3 . 1 . . . Melee . | . . . . . . . . . . . . . . Uniques/NPCs Destroyed . | . . . . . . . . . . . . . . Combat | -11 -10 -9 -9 -8 -7 -6 -6 -6 -5 -5 -5 -5 -4 -------- Run | Yrd Mat Mat Min Mat Fac Fac Was Fac Fac Upp Upp War Pro Hostile Shots Fired 385 | . 33 68 1 12 95 18 . 1 . 25 2 33 97 Missed 161 | . 13 26 . 5 44 10 . . . 12 1 21 29 Damage Taken 3275 | . 160 418 8 90 501 61 . 16 . 166 20 464 1371 Core 1270 | . 25 89 . . 120 11 . 16 . 33 20 88 868 Absorbed by Shields . | . . . . . . . . . . . . . . Redirected to Shielding 55 | . . . . . . . . . . 40 . . 15 Regen/Repaired (Parts) 54 | . . . . . . . . . . . . 54 . Core Remaining (%) 90 | 100 90 . 77 100 82 . . 96 . . . . . Volleys Fired 89 | . 8 28 1 8 12 3 . 1 . 10 . 13 5 Largest 2 | . 2 2 2 2 2 1 . 2 . 1 . 1 1 Hottest 100 | . 90 90 56 53 53 36 . 72 . 57 . 50 100 Shots Fired 142 | . 15 53 2 15 24 3 . 2 . 10 . 13 5 Gun 91 | . 15 46 1 8 12 . . . . . . 5 4 Cannon 5 | . . . . . . . . . . 4 . . 1 Launcher 46 | . . 7 1 7 12 3 . 2 . 6 . 8 . Special . | . . . . . . . . . . . . . . Kinetic 37 | . . 12 1 8 12 . . . . 4 . . . Thermal 49 | . 15 34 . . . . . . . . . . . Explosive 31 | . . 7 1 7 12 3 . 1 . . . . . Electromagnetic 15 | . . . . . . . . 1 . 6 . 8 . Entropic 10 | . . . . . . . . . . . . 5 5 Robot Hit Streak 5 | . 3 5 1 2 3 1 . 3 . 1 . 2 1 Robot Miss Streak 8 | . 4 8 1 4 4 1 . . . 3 . 1 3 Penetration Max . | . . . . . . . . . . . . . . Secondary Targets 1 | . . 1 . . . . . . . . . . . Max Gunslinging Chain 1 | . . 1 . . . . . . . . . . . Shots Hit Robots 59 | . 8 25 1 7 8 2 . 2 . 1 . 4 1 Core Hits 59 | . 4 16 2 9 14 2 . 4 . 4 . 4 . Critical Kills . | . . . . . . . . . . . . . . Critical Parts Destroyed . | . . . . . . . . . . . . . . Critical Strikes 4 | . 1 3 . . . . . . . . . . . Burn 4 | . 1 3 . . . . . . . . . . . Melee Attacks . | . . . . . . . . . . . . . . Impact . | . . . . . . . . . . . . . . Slashing . | . . . . . . . . . . . . . . Piercing . | . . . . . . . . . . . . . . Sneak Attacks . | . . . . . . . . . . . . . . Combat Hostiles . | . . . . . . . . . . . . . . Follow-up Attacks . | . . . . . . . . . . . . . . Damage Inflicted 3327 | . 105 894 153 557 562 114 . 193 . 123 . 549 77 Guns 661 | . 105 289 . 28 48 . . . . . . 114 77 Cannons 21 | . . . . . . . . . . 21 . . . Explosions 2645 | . . 605 153 529 514 114 . 193 . 102 . 435 . Melee . | . . . . . . . . . . . . . . Ramming . | . . . . . . . . . . . . . . Kinetic 204 | . . 107 . 28 48 . . . . 21 . . . Thermal 471 | . 105 182 . . . . . . . . . 184 . Explosive 2009 | . . 605 153 529 514 114 . 94 . . . . . Electromagnetic 452 | . . . . . . . . 99 . 102 . 251 . Impact . | . . . . . . . . . . . . . . Slashing . | . . . . . . . . . . . . . . Piercing . | . . . . . . . . . . . . . . Entropic 191 | . . . . . . . . . . . . 114 77 Highest Corruption 1 | . 1 . . 1 . . . . . . . . . Average Corruption 1 | . 1 . . 1 . . . . . . . . . Corruption Purged . | . . . . . . . . . . . . . . Corruption Blocked 20 | . . . . . . . . . . . . 20 . Effects 3 | . 2 . . 1 . . . . . . . . . Energy Discharges 1 | . 1 . . . . . . . . . . . . Data Loss (minor) 1 | . . . . 1 . . . . . . . . . Weapon Failures 1 | . 1 . . . . . . . . . . . . Overload Shots . | . . . . . . . . . . . . . . Overflow Damage 53 | . . 30 . 9 5 . . . . . . 9 . Projectiles . | . . . . . . . . . . . . . . Explosions 53 | . . 30 . 9 5 . . . . . . 9 . Melee . | . . . . . . . . . . . . . . Knockbacks . | . . . . . . . . . . . . . . Impact . | . . . . . . . . . . . . . . Kinetic . | . . . . . . . . . . . . . . Secondary . | . . . . . . . . . . . . . . Self-Inflicted Damage 65 | . . 39 . . 26 . . . . . . . . Shots 2 | . . 1 . . 1 . . . . . . . . Rammed . | . . . . . . . . . . . . . . Targets Rammed . | . . . . . . . . . . . . . . Kicked . | . . . . . . . . . . . . . . Crushed . | . . . . . . . . . . . . . . Highest Temperature 323 | . 168 197 . 1 9 11 . 220 276 318 3 323 12 Average Temperature 91 | . 80 103 . 1 2 6 . 66 150 138 3 163 8 Received Heat Transfer 431 | . . 39 . . 72 18 . . . 9 9 . 284 Effects 4 | . . . . . . . . . 4 . . . . Interference 4 | . . . . . . . . . 4 . . . . Siege Activations . | . . . . . . . . . . . . . . Robots Corrupted . | . . . . . . . . . . . . . . Combat Hostiles . | . . . . . . . . . . . . . . Parts Fried . | . . . . . . . . . . . . . . Impact Corruptions . | . . . . . . . . . . . . . . Robots Melted . | . . . . . . . . . . . . . . Combat Hostiles . | . . . . . . . . . . . . . . Parts Melted 1 | . . 1 . . . . . . . . . . . Heat Transferred 1314 | . 359 705 . . . . . . . . . 250 . Parts Sabotaged . | . . . . . . . . . . . . . . Parts Stolen . | . . . . . . . . . . . . . . Parts Stripped . | . . . . . . . . . . . . . . Power Chain Reactions 3 | . . . . . . . . . . . . 3 . Alert | -11 -10 -9 -9 -8 -7 -6 -6 -6 -5 -5 -5 -5 -4 ------- Run | Yrd Mat Mat Min Mat Fac Fac Was Fac Fac Upp Upp War Pro Peak Influence 525 | . 182 525 267 334 397 276 101 258 146 . . . . Initial 204 | . . 76 204 104 151 179 101 70 126 . . . . Average 184 | . 60 226 256 250 249 204 101 178 139 . . . . Maximum Alert Level 2 | . . 2 1 1 1 1 . 1 . . . . . Low Security (%) 59 | 100 100 42 . 50 36 49 100 69 100 . . . . Level 1 39 | . . 46 100 49 63 50 . 30 . . . . . Level 2 1 | . . 10 . . . . . . . . . . . Level 3 . | . . . . . . . . . . . . . . Level 4 . | . . . . . . . . . . . . . . Level 5 . | . . . . . . . . . . . . . . High Security . | . . . . . . . . . . . . . . Max Security . | . . . . . . . . . . . . . . Squads Dispatched 7 | . . 2 . . . 2 . 2 . . . . 1 Investigation . | . . . . . . . . . . . . . . Extermination . | . . . . . . . . . . . . . . Reinforcement 6 | . . 2 . . . 2 . 2 . . . . . Assault 1 | . . . . . . . . . . . . . 1 Garrison . | . . . . . . . . . . . . . . Intercept . | . . . . . . . . . . . . . . Searches Triggered . | . . . . . . . . . . . . . . Construction Impeded . | . . . . . . . . . . . . . . Haulers Reinforced . | . . . . . . . . . . . . . . Active Scanning Responses . | . . . . . . . . . . . . . . Cargo Convoy Interrupts . | . . . . . . . . . . . . . . Stealth | -11 -10 -9 -9 -8 -7 -6 -6 -6 -5 -5 -5 -5 -4 --------- Run | Yrd Mat Mat Min Mat Fac Fac Was Fac Fac Upp Upp War Pro Distress Signals 10 | . . 2 . 3 3 1 . . . . . 1 . Communications Jammed . | . . . . . . . . . . . . . . Distress Signals . | . . . . . . . . . . . . . . Times Spotted 132 | . 11 18 3 10 12 9 . 5 1 5 5 44 9 Peak Tracking Total 13 | . 4 5 3 6 6 6 . 3 1 2 4 13 9 Tactical Retreats 19 | . 3 2 . 1 3 . . . . 2 2 6 . Traps | -11 -10 -9 -9 -8 -7 -6 -6 -6 -5 -5 -5 -5 -4 ------- Run | Yrd Mat Mat Min Mat Fac Fac Was Fac Fac Upp Upp War Pro Traps Triggered 5 | . 1 . . 1 . 1 . . . . . 2 . Indirectly 2 | . . . . . . . . . . . . 2 . Trap Hack Attempts . | . . . . . . . . . . . . . . Triggered . | . . . . . . . . . . . . . . Disarmed . | . . . . . . . . . . . . . . Reprogrammed . | . . . . . . . . . . . . . . Reused . | . . . . . . . . . . . . . . Traps Extracted . | . . . . . . . . . . . . . . Installed . | . . . . . . . . . . . . . . Triggered 15 | . . . . . . . . . . 1 1 13 . Machines | -11 -10 -9 -9 -8 -7 -6 -6 -6 -5 -5 -5 -5 -4 ---------- Run | Yrd Mat Mat Min Mat Fac Fac Was Fac Fac Upp Upp War Pro Machines Disabled 5 | . . 1 . . . 1 . 1 . . . 2 . Max in Single Turn 2 | . . 1 . . . 1 . 1 . . . 2 . Machines Repaired . | . . . . . . . . . . . . . . Machines Dismantled . | . . . . . . . . . . . . . . Machines Sabotaged . | . . . . . . . . . . . . . . Overloaded Fab Kills . | . . . . . . . . . . . . . . Hacking | -11 -10 -9 -9 -8 -7 -6 -6 -6 -5 -5 -5 -5 -4 --------- Run | Yrd Mat Mat Min Mat Fac Fac Was Fac Fac Upp Upp War Pro Machines Accessed 30 | . 1 2 . 2 5 1 . 6 2 2 . 9 . Terminals 19 | . 1 2 . 2 4 1 . 6 2 1 . . . Fabricators 1 | . . . . . 1 . . . . . . . . Repair Stations . | . . . . . . . . . . . . . . Recycling Units . | . . . . . . . . . . . . . . Scanalyzers . | . . . . . . . . . . . . . . Garrison Access . | . . . . . . . . . . . . . . Total Hacks 54 | . 1 4 . 4 10 2 . 10 5 2 . 16 . Successful 28 | . . . . 1 5 1 . 2 1 2 . 16 . Failed 26 | . 1 4 . 3 5 1 . 8 4 . . . . Catastrophic 9 | . 1 1 . 1 3 . . 3 . . . . . Database Lockouts . | . . . . . . . . . . . . . . Manual 18 | . 1 4 . 2 3 1 . 6 . 1 . . . Terminals 36 | . 1 4 . 4 9 2 . 10 5 1 . . . Fabricators 1 | . . . . . 1 . . . . . . . . Repair Stations . | . . . . . . . . . . . . . . Recycling Units . | . . . . . . . . . . . . . . Scanalyzers . | . . . . . . . . . . . . . . Garrison Access . | . . . . . . . . . . . . . . Terminal Hacks 27 | . . . . 1 4 1 . 2 1 2 . 16 . Record 16 | . . . . . . . . . . 1 . 15 . Open Door 2 | . . . . . . . . . . 1 . 1 . Open DSF 2 | . . . . . 1 . . 1 . . . . . Locate Traps 1 | . . . . . . 1 . . . . . . . Transport Status 1 | . . . . . 1 . . . . . . . . Zone Layout 5 | . . . . 1 2 . . 1 1 . . . . Fabricator Hacks 1 | . . . . . 1 . . . . . . . . Network Status 1 | . . . . . 1 . . . . . . . . Repair Station Hacks . | . . . . . . . . . . . . . . Recycling Unit Hacks . | . . . . . . . . . . . . . . Scanalyzer . | . . . . . . . . . . . . . . Garrison Access Hacks . | . . . . . . . . . . . . . . Unauthorized Hacks . | . . . . . . . . . . . . . . Terminals . | . . . . . . . . . . . . . . Fabricators . | . . . . . . . . . . . . . . Repair Stations . | . . . . . . . . . . . . . . Recycling Units . | . . . . . . . . . . . . . . Scanalyzers . | . . . . . . . . . . . . . . Garrison Access . | . . . . . . . . . . . . . . Data Cores Recovered . | . . . . . . . . . . . . . . Used . | . . . . . . . . . . . . . . Hacking Detections 16 | . 1 2 . 2 4 1 . 4 2 . . . . Full Trace Events 1 | . . 1 . . . . . . . . . . . Feedback Events . | . . . . . . . . . . . . . . Feedback Blocked . | . . . . . . . . . . . . . . Robot Schematics Acquired . | . . . . . . . . . . . . . . Robots Built . | . . . . . . . . . . . . . . Authchips . | . . . . . . . . . . . . . . Time . | . . . . . . . . . . . . . . Total Robot Build Rating . | . . . . . . . . . . . . . . Part Schematics Acquired . | . . . . . . . . . . . . . . Parts Built . | . . . . . . . . . . . . . . Authchips . | . . . . . . . . . . . . . . Time . | . . . . . . . . . . . . . . Total Part Build Rating . | . . . . . . . . . . . . . . Parts Repaired . | . . . . . . . . . . . . . . Time . | . . . . . . . . . . . . . . Parts Recycled . | . . . . . . . . . . . . . . Recycled Matter . | . . . . . . . . . . . . . . Retrieved Matter . | . . . . . . . . . . . . . . Retrieved Components . | . . . . . . . . . . . . . . Parts Scanalyzed . | . . . . . . . . . . . . . . Part Schematics Acquired . | . . . . . . . . . . . . . . Parts Damaged . | . . . . . . . . . . . . . . Bothacking | -11 -10 -9 -9 -8 -7 -6 -6 -6 -5 -5 -5 -5 -4 ------------ Run | Yrd Mat Mat Min Mat Fac Fac Was Fac Fac Upp Upp War Pro Used RIF Installer . | . . . . . . . . . . . . . . Robots Hacked . | . . . . . . . . . . . . . . Non-combat . | . . . . . . . . . . . . . . Combat . | . . . . . . . . . . . . . . Robot Hacks Applied . | . . . . . . . . . . . . . . Relay Couplers Released . | . . . . . . . . . . . . . . Fabnet Peak Effective % . | . . . . . . . . . . . . . . Robots Rewired . | . . . . . . . . . . . . . . Allies Hacked . | . . . . . . . . . . . . . . Hacks Repelled . | . . . . . . . . . . . . . . Allies | -11 -10 -9 -9 -8 -7 -6 -6 -6 -5 -5 -5 -5 -4 -------- Run | Yrd Mat Mat Min Mat Fac Fac Was Fac Fac Upp Upp War Pro Total Allies 1 | . . . 1 . . . . . . . . . . Largest Group 1 | . . . 1 1 1 . . . . . . . . Highest-Rated Group 31 | . . . 31 31 31 . . . . . . . . Highest-Rated Ally 31 | . . . 31 31 31 . . . . . . . . Total Orders . | . . . . . . . . . . . . . . Ally Attacks 16 | . . . . 16 . . . . . . . . . Total Damage 189 | . . . . 189 . . . . . . . . . Kills 1 | . . . . 1 . . . . . . . . . Allies Corrupted . | . . . . . . . . . . . . . . Allies Melted 4 | . . . . . . . . . . . . 4 . Intel | -11 -10 -9 -9 -8 -7 -6 -6 -6 -5 -5 -5 -5 -4 ------- Run | Yrd Mat Mat Min Mat Fac Fac Was Fac Fac Upp Upp War Pro Robot Analysis Total . | . . . . . . . . . . . . . . Derelict Logs Recovered 4 | . . . 1 . . . . . . 2 1 . . Drone Launches . | . . . . . . . . . . . . . . Drone Recoveries . | . . . . . . . . . . . . . . Exploration | -11 -10 -9 -9 -8 -7 -6 -6 -6 -5 -5 -5 -5 -4 ------------- Run | Yrd Mat Mat Min Mat Fac Fac Was Fac Fac Upp Upp War Pro Turns Passed 3586 | 63 306 282 137 280 240 161 74 202 48 634 91 938 130 Spaces Moved 7286 | 42 229 276 190 435 656 419 257 711 163 1022 426 2332 128 Core 18 | 14 . . . . . . . . . . . . 4 Treads . | . . . . . . . . . . . . . . Legs 315 | 28 229 58 . . . . . . . . . . . Wheels . | . . . . . . . . . . . . . . Hover 861 | . . 79 190 435 65 92 . . . . . . . Flight 6092 | . . 139 . . 591 327 257 711 163 1022 426 2332 124 Fastest Speed 21 | 50 120 31 48 48 23 25 25 21 21 21 21 21 35 Average Speed 39 | 126 120 62 48 48 27 32 25 24 27 57 21 29 86 Slowest Speed 350 | 200 120 180 48 52 275 110 25 25 98 104 21 106 350 Overloaded Moves . | . . . . . . . . . . . . . . Propulsion Burnouts . | . . . . . . . . . . . . . . Robots Hopped 18 | . . 1 . . 2 . . 4 . . 2 9 . Cave-ins Triggered . | . . . . . . . . . . . . . . Exploration Rate (%) 42 | 5 41 28 63 30 18 13 96 27 6 82 70 94 17 Regions Visited 13 Branch Regions 5 Pre-discovered Areas 1 | . . . 1 . . . . . . . . . . Known Exits Taken . | . . . . . . . . . . . . . . Unknown Exits Taken 11 | 1 1 1 1 1 1 . . 1 1 1 1 1 . Scrap Searched 5 | . . . 1 . . . . . . 3 1 . . Spaces Dug . | . . . . . . . . . . . . . . Terrain Destroyed 225 | . . 39 15 63 43 37 . 8 . 3 . 9 8 Melee . | . . . . . . . . . . . . . . Projectile 20 | . . . . . . . . . . 3 . 9 8 AOE 205 | . . 39 15 63 43 37 . 8 . . . . . Terrain Rammed . | . . . . . . . . . . . . . . Walls Destroyed . | . . . . . . . . . . . . . . Machines Disabled . | . . . . . . . . . . . . . . Actions | -11 -10 -9 -9 -8 -7 -6 -6 -6 -5 -5 -5 -5 -4 --------- Run | Yrd Mat Mat Min Mat Fac Fac Was Fac Fac Upp Upp War Pro Total 7839 | 49 244 331 233 490 686 441 265 732 166 1064 424 2571 143 Wait 291 | . 5 . 41 29 . . . . . 20 . 190 6 Move 7242 | 41 228 273 189 434 651 419 256 702 162 1021 421 2317 128 Hop 14 | . . 1 . . 2 . . 4 . . 2 5 . Pick Up 54 | 2 3 10 1 6 1 2 2 6 1 3 . 17 . Fast Attach 46 | 6 . 5 . 2 12 7 3 5 1 1 . 3 1 Attach 18 | . . 3 . 3 . 2 . 1 1 2 . 3 3 Detach 5 | . . . . . . 1 . . . 2 . 2 . Swap 15 | . . 3 . 2 . 1 1 3 . 1 1 3 . Drop 65 | . . 8 1 6 8 6 3 10 1 4 . 18 . Fire 89 | . 8 28 1 8 12 3 . 1 . 10 . 13 5 Melee . | . . . . . . . . . . . . . . Ram . | . . . . . . . . . . . . . . Kick . | . . . . . . . . . . . . . . Crush . | . . . . . . . . . . . . . . Escape Stasis . | . . . . . . . . . . . . . . Rewire . | . . . . . . . . . . . . . . Trap . | . . . . . . . . . . . . . . Miscellaneous . | . . . . . . . . . . . . . . Route ------- -11/Scrapyard -10/Materials -9/Materials (discovered 2 exits: [*Min] / [*Sto]) -9/Mines (discovered 2 exits: *Mat x2) -8/Materials -7/Factory -6/Factory -6/Waste -6/Factory -5/Factory -5/Upper Caves -5/Upper Caves (discovered 2 exits: [*Fac] / *War) -5/Warlord -4/Proximity Caves History --------- Turn | Location | Event 17 | -11/Scrapyard | Discovered new exit (range 16) 64 | -11/Scrapyard | Entered Materials 312 | -10/Materials | Build established: Mutant 336 | -10/Materials | Discovered new exit (range 11) 370 | -10/Materials | Entered another Materials area 370 | -9/Materials | Evolved 2 slots: Propulsion x2 423 | -9/Materials | Discovered new exit (range 11) 645 | -9/Materials | Discovered new exit (range 11) 652 | -9/Materials | Entered Mines 654 | -9/Mines | Discovered new exit (range 15) 675 | -9/Mines | Escorted by a lone wolf Derelict 692 | -9/Mines | Found a hidden stash of uninstalled traps 695 | -9/Mines | Learned location of Storage (-9) 723 | -9/Mines | Received a Rocket Launcher from a helpful Derelict 765 | -9/Mines | Discovered new exit (range 15) 789 | -9/Mines | Entered Materials 789 | -8/Materials | Accompanied by 1 ally 789 | -8/Materials | Evolved 2 slots: Utility x2 879 | -8/Materials | Discovered new exit (range 3) 1069 | -8/Materials | Entered Factory 1069 | -7/Factory | Accompanied by 1 ally 1069 | -7/Factory | Evolved 2 slots: Propulsion x2 1140 | -7/Factory | Identified exit to DSF 1270 | -7/Factory | Discovered new exit (range 16) 1309 | -7/Factory | Entered another Factory area 1309 | -6/Factory | Evolved 2 slots: Utility x1, Weapon x1 1332 | -6/Factory | Lost 5 parts (3n2w) 1470 | -6/Factory | Sucked down chute 1470 | -6/Factory | Entered Waste 1470 | -6/Waste | The area was eerily silent 1532 | -6/Waste | Discovered new exit (range 16) 1544 | -6/Waste | Entered Factory 1673 | -6/Factory | Build established: Sprinter 1726 | -6/Factory | Spotted B-75 Beast 1740 | -6/Factory | Discovered new exit (range 9) 1746 | -6/Factory | Entered another Factory area 1746 | -5/Factory | Evolved 2 slots: Power x1, Utility x1 1763 | -5/Factory | Discovered new exit (range 21) 1794 | -5/Factory | Entered Upper Caves 1883 | -5/Upper Caves | Learned 4 Factory zone layouts 1936 | -5/Upper Caves | Learned Factory terminal intel 1957 | -5/Upper Caves | Encountered a Warlord checkpoint 1972 | -5/Upper Caves | Spotted B-75 Beast 1988 | -5/Upper Caves | Discovered new exit (range 16) 2088 | -5/Upper Caves | Build established: Mutant 2400 | -5/Upper Caves | Attracted the attention of an 0b10 checkpoint 2428 | -5/Upper Caves | Entered another Upper Caves area 2452 | -5/Upper Caves | Discovered new exit (range 11) 2498 | -5/Upper Caves | Learned Factory garrison access intel 2512 | -5/Upper Caves | Encountered a Warlord checkpoint 2513 | -5/Upper Caves | Discovered new exit (range 7) 2519 | -5/Upper Caves | Entered Warlord 2542 | -5/Warlord | Discovered new exit (range 9) 2629 | -5/Warlord | Visited the Vortex Lab 2630 | -5/Warlord | Found Prototype Energy Gun 2631 | -5/Warlord | Identified Vortex Rail 2637 | -5/Warlord | Found Prototype Energy Cannon 2638 | -5/Warlord | Identified Vortex Driver 2643 | -5/Warlord | Found Vortex Driver 2644 | -5/Warlord | Found Vortex Rail 2646 | -5/Warlord | Found Prototype Energy Gun 2647 | -5/Warlord | Identified Vortex Rifle 2649 | -5/Warlord | Found Vortex Rifle 2651 | -5/Warlord | Warlord's base attacked by MAIN.C 2669 | -5/Warlord | Build established: Sprinter 2813 | -5/Warlord | Met Warlord 2914 | -5/Warlord | Found Prototype Device 2978 | -5/Warlord | Spotted B-75 Beast 2990 | -5/Warlord | Spotted Striker 2990 | -5/Warlord | Spotted B-86 Titan 3001 | -5/Warlord | Warlord forces counterattacked 3070 | -5/Warlord | Lost 12 allies 3075 | -5/Warlord | Spotted B-75 Beast 3075 | -5/Warlord | Spotted B-86 Titan 3082 | -5/Warlord | Spotted Striker 3107 | -5/Warlord | Build established: Hacker-Sprinter 3136 | -5/Warlord | Lost 4 allies 3214 | -5/Warlord | Spotted Striker 3214 | -5/Warlord | Spotted Striker 3256 | -5/Warlord | Destroyed Striker 3326 | -5/Warlord | Warlord base infiltrated, sounded retreat 3395 | -5/Warlord | Spotted Striker 3451 | -5/Warlord | Spotted Executioner 3457 | -5/Warlord | Entered Proximity Caves 3516 | -4/Proximity Caves | Build established: Hacker-Mutant 3573 | -4/Proximity Caves | Attracted the attention of an 0b10 outpost 3580 | -4/Proximity Caves | Core integrity fell below 50% 3586 | -4/Proximity Caves | Core integrity fell below 20% 3587 | -4/Proximity Caves | Destroyed by G-67 Veteran with Plasma Rifle Last Messages --------------- Sml. Storage Unit destroyed. S-27 Virus destroyed. Cld. VTOL Module destroyed. Y-72 Warden: "DETECTED UNIDENTIFIED DERELICT." Slug penetrates Wall. Y-72 Warden: "REQUESTING BACKUP." Vortex Driver destroyed. Adv. Heat Sink destroyed. S-27 Virus destroyed. Acquired Lgt. Nuclear Core. Mak. Hacking Suite destroyed. Lgt. Nuclear Core destroyed. Adv. Weight Redist. System destroyed. Penetrated by Slug. Slug penetrates L-61 Swordsman. Critical hit (Burn: +50). Penetrated by Slug. L-61 Swordsman destroyed. Critical hit (Burn: +50). [Achievement: This Is Interesting...] Map ----- +----------------------------------------------------+ | ?????????????????????### ##?# #??????????? | | ???????????#???????##### ## #???????????? | | ???????????# ????### #?????????????????? | | ??????????## ?### ##?????????????????? | | ??????????# ## #????##????????????? | | ??????????# % ##???? ####?????????? | | ??????????#### #???? ??????????? | | ?????????????# ##### #????????????? | | ?????????????# #?????????????? | | ?????????????# ######?????????? | | ?????????????#### ### ##????????? | | ????????????????### ## #????????? | | ??????????????????# ### ######## ## | | ?????????????????## #### ### | | ????????????????## Y### #### | | ???????????????## ## ###" # # | | ?????????# ???## ## ### ### | | ?????????# ## ;####### #??? "? | | ?????????# ###????# # #???? "# | | ?????????# #;#????# # #??????# | | ?????????# ## gg;#????# ## #??????? | | ?????????### ###;gsg #????# ### #??????? | | ???????????# ##??;;; #???## #?# ??????? | | ??????????# #??? ; #???# #####??????? | | ??????????# #?###;;%##???#### ##???????# | | ??????????## ### @% #??????## #?###### | | ???????????## ### % ##????## ### ## | | ????????????# #??# ##???# | | ???????????# ???## [] ## ## # | | ???????????# ###????###### ## ##?## ### | | ???????????## #????????????# #####????### ###?? | | ????????????##?????????????####??????????#####???? | | ?????????????????????????????????????????????????? | | ?????????????????????????????????????????????????? | | ?????????????????????????????????????????????????? | | ?????????????????????????????????????????????????? | | ?????????????????????????????????????????????????? | | ?????????????????????????????????????????????????? | | ?????????????????????????????????????????????????? | | ?????????????????????????????????????????????????? | | ?????????????????????????????????????????????????? | | ?????????????????????????????????????????????????? | | ?????????????????????????????????????????????????? | | ?????????????????????????????????????????????????? | | ?????????????????????????????????????????????????? | | ?????????????????????????????????????????????????? | | ?????????????????????????????????????????????????? | | ?????????????????????????????????????????????????? | | ?????????????????????????????????????????????????? | | ?????????????????????????????????????????????????? | +----------------------------------------------------+ Best States ------------- Heat Dissipation 59 Energy Generation 28 Energy Capacity 210 Matter Stores 300 Matter Capacity 300 Sight Range 22 Robot Scan Range 15 Terrain Scan Density 10 Additional Mass Support 9 Propulsion Shielding 66 Evasion (%) 65 Recoil Reduction 1 Offensive Hacking 21 Item Schematics ----------------- None Robot Schematics ------------------ None Fabricated ------------ Nothing Alien Tech Used ----------------- None Achievements -------------- A Powerful Ally? Charge!!! Slippery One This Is Interesting... Challenges ------------ None Game ------ Seed FieldCouplerStorm Manual? 0 Play Time 01:23:33 Cumulative 13.6 hours Start 2024.04.28 @ 05:57:46 End 2024.04.28 @ 07:22:55 Sessions 1 Manual Loads 0 Difficulty Rogue Special Mode None Game No. 17 Rogue 17 Adventurer 0 Explorer 0 Win Type - Total 0 Types 0/0/0/0/0/0/0/0/0 Lore% 27 Gallery% 19 Achievement% 23 Wizard Run 0 Options --------- Layout 1 ASCII 0 Keyboard 0 Movement Arrows Keybinds 0 Fullscreen 1 Font 24/Smallcaps Map View 50x35 Zoom Use 0% Tactical HUD 0 Map Filters NONE Filters NONE Steam 0 RUN: 6c243567-7c89-464b-b206-b4d4957f26ef